bitfinex/quotes_BTCUSD_20250215
["timestamp","ask_amount","ask_price","bid_price","bid_amount"]
[1739638154548,0.19278622,97500.0,97499.0,3.54913065]
[1739638154742,0.19278622,97500.0,97499.0,3.55913065]
[1739638154927,0.06325769,97500.0,97499.0,3.67513065]
[1739638155125,0.06225769,97500.0,97499.0,3.68213065]
[1739638155843,0.02123169,97500.0,97499.0,3.67513065]
[1739638156094,6.9e-07,97500.0,97499.0,3.68213065]
[1739638156308,6.9e-07,97500.0,97499.0,0.77639065]
[1739638156524,6.9e-07,97500.0,97499.0,0.79704186]
[1739638157006,0.00100069,97500.0,97499.0,0.80404186]
[1739638157208,0.00100069,97500.0,97499.0,0.79704186]
[1739638157656,0.00100069,97500.0,97499.0,3.71149876]
[1739638158389,0.00100069,97500.0,97499.0,4.03739876]
[1739638158591,0.00100069,97500.0,97499.0,4.03568186]
[1739638159122,0.00122435,97500.0,97499.0,3.95498186]
[1739638159325,0.00122435,97500.0,97499.0,1.79344186]
[1739638162333,3.5e-07,97500.0,97499.0,1.79515876]
[1739638162539,0.00022366,97511.0,97510.0,0.30383]
[1739638162740,0.00022366,97511.0,97510.0,3.33507365]
[1739638163930,0.00022366,97511.0,97510.0,3.34207365]
[1739638164160,0.00122366,97511.0,97510.0,3.34907365]
[1739638168223,1e-08,97511.0,97510.0,3.34907365]
[1739638168453,1e-08,97511.0,97510.0,0.44333365]
[1739638173094,0.00022367,97511.0,97510.0,0.44333365]
[1739638173312,0.00022367,97511.0,97510.0,3.34907365]
[1739638174899,6.7e-07,97511.0,97510.0,3.35907365]
[1739638175189,6.7e-07,97511.0,97510.0,0.45333365]
[1739638176075,0.0797,97531.0,97530.0,0.153798]
[1739638177544,0.07983112,97531.0,97530.0,0.156798]
[1739638177767,0.07983112,97531.0,97530.0,0.155198]
[1739638178303,0.07983112,97531.0,97530.0,0.154198]
[1739638178756,0.07983112,97531.0,97530.0,0.16261078]
[1739638178956,0.07983112,97531.0,97530.0,0.16761078]
[1739638179438,0.07983112,97531.0,97530.0,0.16561078]
[1739638179881,0.07983112,97531.0,97530.0,0.16761078]
[1739638180150,0.07983112,97531.0,97530.0,0.17061078]
[1739638181090,0.07983112,97531.0,97530.0,0.32061078]
[1739638186005,0.08005478,97531.0,97530.0,0.32061078]
[1739638186904,0.00035478,97531.0,97530.0,0.44611443]
[1739638188442,0.00035478,97531.0,97530.0,0.49401443]
[1739638188624,0.00035478,97531.0,97530.0,3.39975443]
[1739638188862,0.00035478,97531.0,97530.0,3.35185443]
[1739638189292,0.00035478,97531.0,97530.0,3.34685443]
[1739638189508,0.00035478,97531.0,97530.0,3.35085443]
[1739638189722,0.00135478,97531.0,97530.0,3.35785443]
[1739638189909,0.00135478,97531.0,97530.0,1.28271443]
[1739638190151,0.00035478,97531.0,97530.0,1.27571443]
[1739638190373,0.00135478,97531.0,97530.0,1.28971443]
[1739638190781,0.00135478,97531.0,97530.0,1.25911443]
[1739638192292,7.8e-07,97531.0,97530.0,1.33661443]
[1739638192500,0.00022366,97541.0,97540.0,0.303783]
[1739638192709,0.00022366,97541.0,97540.0,3.31202665]
[1739638193921,0.00022366,97541.0,97540.0,3.31802665]
[1739638195299,0.00022366,97541.0,97540.0,3.32502665]
[1739638196265,6.6e-07,97541.0,97540.0,3.32502665]
[1739638196712,6.6e-07,97541.0,97540.0,0.41928665]
[1739638196916,6.6e-07,97541.0,97540.0,0.43960236]
[1739638197603,6.6e-07,97541.0,97540.0,0.43360236]
[1739638198167,6.6e-07,97541.0,97540.0,0.42660236]
[1739638198394,6.6e-07,97541.0,97540.0,0.41328665]
[1739638198643,0.07650066,97541.0,97540.0,0.41328665]
[1739638198842,6.6e-07,97541.0,97540.0,0.70808665]
[1739638199036,6.6e-07,97541.0,97540.0,0.41928665]
[1739638199620,6.6e-07,97541.0,97540.0,0.41228665]
[1739638199794,6.6e-07,97541.0,97540.0,0.40628665]
[1739638200141,6.6e-07,97541.0,97540.0,0.42028665]
[1739638210475,0.07500066,97541.0,97540.0,0.317783]
[1739638210712,0.07500066,97541.0,97540.0,0.014]
[1739638210910,0.07500066,97541.0,97540.0,0.167783]
[1739638211866,0.07500066,97541.0,97540.0,0.1538894]
[1739638212281,0.07500066,97541.0,97540.0,0.1578894]
[1739638212485,0.07500066,97541.0,97540.0,0.0041064]
[1739638212669,0.12300066,97541.0,97540.0,0.1578894]
[1739638213436,0.12300066,97541.0,97540.0,0.1598894]
[1739638220115,0.12300066,97541.0,97540.0,0.0061064]
[1739638220629,0.12300066,97541.0,97540.0,0.1598894]
[1739638221052,0.12300066,97541.0,97540.0,0.1538894]
[1739638221287,0.12300066,97541.0,97540.0,0.1568894]
[1739638221691,0.12300066,97541.0,97540.0,0.1558894]
[1739638221904,0.12300066,97541.0,97540.0,0.1538894]
[1739638222112,0.12300066,97541.0,97540.0,0.1578894]
[1739638222320,0.13128376,97541.0,97540.0,0.1578894]
[1739638222535,0.13128376,97541.0,97540.0,0.1598894]
[1739638223153,0.13128376,97541.0,97540.0,0.0061064]
[1739638223943,0.13128376,97541.0,97540.0,0.0021064]
[1739638224096,0.13128376,97541.0,97540.0,0.0041064]
[1739638224298,0.13128376,97541.0,97540.0,0.0021064]
[1739638224543,0.28506476,97541.0,97540.0,0.0031064]
[1739638226656,0.38756841,97541.0,97540.0,0.0031064]
[1739638227322,0.38756841,97541.0,97540.0,0.0011064]
[1739638227529,0.38856841,97541.0,97540.0,0.0011064]
[1739638227719,0.38856841,97541.0,97540.0,0.0001064]
[1739638228069,0.38756841,97541.0,97540.0,0.0001064]
[1739638228267,0.38856841,97541.0,97540.0,0.0001064]
[1739638230827,0.40877636,97541.0,97540.0,0.0001064]
[1739638238911,0.41021636,97541.0,97540.0,0.0001064]
[1739638245944,0.40921636,97541.0,97540.0,0.0001064]
[1739638246353,0.41021636,97541.0,97540.0,0.0001064]
[1739638258466,0.44209635,97541.0,97540.0,0.0001064]
[1739638259105,0.4218884,97541.0,97540.0,0.0001064]
[1739638259323,0.17994431,97541.0,97540.0,0.0001064]
[1739638259569,0.17994431,97541.0,97540.0,0.1538894]
[1739638260019,0.00144066,97541.0,97540.0,0.1538894]
[1739638260279,0.00972376,97541.0,97540.0,0.1538894]
[1739638260508,0.01072376,97541.0,97540.0,0.1538894]
[1739638260977,0.00972376,97541.0,97540.0,0.1538894]
[1739638262274,0.01072376,97541.0,97540.0,0.1538894]
[1739638262691,0.00972376,97541.0,97540.0,0.1538894]
[1739638262829,0.00972376,97541.0,97540.0,0.1548894]
[1739638265759,0.08592376,97541.0,97540.0,0.0011064]
[1739638265974,0.08592376,97541.0,97540.0,0.1548894]
[1739638270907,0.08592376,97541.0,97540.0,0.0011064]
[1739638272135,0.08720534,97541.0,97540.0,0.0011064]
[1739638273078,0.08592376,97541.0,97540.0,0.0011064]
[1739638273732,0.08720535,97541.0,97540.0,0.0011064]
[1739638274775,0.08592376,97541.0,97540.0,0.0011064]
[1739638275654,0.08720534,97541.0,97540.0,0.0011064]
[1739638276265,0.08720535,97541.0,97540.0,0.0011064]
[1739638276473,0.08592376,97541.0,97540.0,0.0011064]
[1739638277355,0.08720536,97541.0,97540.0,0.0011064]
[1739638277582,0.34349001,97541.0,97540.0,0.0011064]
[1739638277807,0.34220841,97541.0,97540.0,0.0011064]
[1739638278270,0.34220841,97541.0,97540.0,0.0001064]
[1739638278783,0.34320841,97541.0,97540.0,0.0001064]
[1739638279257,0.34220841,97541.0,97540.0,0.0001064]
[1739638279725,0.34320841,97541.0,97540.0,0.0001064]
[1739638281204,0.34220841,97541.0,97540.0,0.0001064]
[1739638281661,0.34320841,97541.0,97540.0,0.0001064]
[1739638297130,0.39240841,97541.0,97540.0,0.0001064]
[1739638297561,0.42432764,97541.0,97540.0,0.0001064]
[1739638297991,0.42332764,97541.0,97540.0,0.0001064]
[1739638298201,0.42432764,97541.0,97540.0,0.0001064]
[1739638299407,0.42332764,97541.0,97540.0,0.0001064]
[1739638300605,0.42832764,97541.0,97540.0,0.0001064]
[1739638302666,0.52017316,97541.0,97540.0,0.0001064]
[1739638303145,0.54317316,97541.0,97540.0,0.0001064]
[1739638306434,0.45132764,97541.0,97540.0,0.0001064]
[1739638306895,0.44632764,97541.0,97540.0,0.0001064]
[1739638307142,0.44932764,97541.0,97540.0,0.0001064]
[1739638307623,0.44632764,97541.0,97540.0,0.0001064]
[1739638308151,0.44932764,97541.0,97540.0,0.0001064]
[1739638316570,0.30092764,97541.0,97540.0,0.0001064]
[1739638317342,0.29264454,97541.0,97540.0,0.0001064]
[1739638317952,0.30092764,97541.0,97540.0,0.0001064]
[1739638320105,0.40472764,97541.0,97540.0,0.0001064]
[1739638320304,0.44972764,97541.0,97540.0,0.0001064]
[1739638321808,0.44672764,97541.0,97540.0,0.0001064]
[1739638322233,0.44972764,97541.0,97540.0,0.0011064]
[1739638323457,0.45672764,97541.0,97540.0,0.0021064]
[1739638323890,0.44972764,97541.0,97540.0,0.0011064]
[1739638324176,0.44972764,97541.0,97540.0,0.0021064]
[1739638324177,0.45672764,97541.0,97540.0,0.0021064]
[1739638341498,0.54751803,97541.0,97540.0,0.0021064]
[1739638342116,0.45672764,97541.0,97540.0,0.0021064]
[1739638343366,0.60672764,97541.0,97540.0,0.0021064]
[1739638348584,0.92832764,97541.0,97540.0,0.0021064]
[1739638353287,0.92688764,97541.0,97540.0,0.0021064]
[1739638355982,0.92688764,97541.0,97540.0,0.0021064]
[1739638373375,0.62808764,97541.0,97540.0,0.0021064]
[1739638373577,0.61980454,97541.0,97540.0,0.0021064]
[1739638373781,0.62808764,97541.0,97540.0,0.0021064]
[1739638373984,0.65108764,97541.0,97540.0,0.0021064]
[1739638374893,0.64280454,97541.0,97540.0,0.0021064]
[1739638375097,0.65108764,97541.0,97540.0,0.0021064]
[1739638376557,0.64280454,97541.0,97540.0,0.0021064]
[1739638377626,0.65108764,97541.0,97540.0,0.0021064]
[1739638381379,0.64280454,97541.0,97540.0,0.0021064]
[1739638382276,0.65108764,97541.0,97540.0,0.0021064]
[1739638388574,0.64280454,97541.0,97540.0,0.0021064]
[1739638389136,0.65108764,97541.0,97540.0,0.0021064]
[1739638390372,0.61916841,97541.0,97540.0,0.0021064]
[1739638390963,0.71107051,97541.0,97540.0,0.0021064]
[1739638391342,0.70278741,97541.0,97540.0,0.0021064]
[1739638391595,0.71107051,97541.0,97540.0,0.0021064]
[1739638392240,0.55728951,97541.0,97540.0,0.0021064]
[1739638392456,0.54900641,97541.0,97540.0,0.0021064]
[1739638392674,0.71107051,97541.0,97540.0,0.0021064]
[1739638393042,0.55728951,97541.0,97540.0,0.0021064]
[1739638393297,0.53428951,97541.0,97540.0,0.0021064]
[1739638393505,0.52600641,97541.0,97540.0,0.0021064]
[1739638393688,0.53428951,97541.0,97540.0,0.0021064]
[1739638393898,0.59616841,97541.0,97540.0,0.0021064]
[1739638396036,0.27456841,97541.0,97540.0,0.0021064]
[1739638398027,0.29756841,97541.0,97540.0,0.0021064]
[1739638415742,0.12078741,97541.0,97540.0,0.0021064]
[1739638417085,0.12078741,97541.0,97540.0,0.1558894]
[1739638417238,0.01000066,97541.0,97540.0,0.1558894]
[1739638417650,0.01000066,97541.0,97540.0,0.2360894]
[1739638418015,0.01828376,97541.0,97540.0,0.2360894]
[1739638418831,0.01000066,97541.0,97540.0,0.2360894]
[1739638420491,0.01828376,97541.0,97540.0,0.1558894]
[1739638421700,0.01828376,97541.0,97540.0,0.15538387]
[1739638422170,0.01828376,97541.0,97540.0,0.15364743]
[1739638426395,0.0082831,97539.0,97538.0,0.153785]
[1739638427506,0.0192831,97539.0,97538.0,0.155785]
[1739638428829,0.0122831,97539.0,97538.0,0.154785]
[1739638429252,0.0092831,97539.0,97538.0,0.153785]
[1739638429462,0.0102831,97539.0,97538.0,0.153785]
[1739638430988,0.0102831,97539.0,97538.0,0.1538915]
[1739638437838,0.002,97539.0,97538.0,0.1538915]
[1739638438377,0.0102831,97539.0,97538.0,0.1538915]
[1739638439015,0.002,97539.0,97538.0,0.1538915]
[1739638439398,0.0102831,97539.0,97538.0,0.1538915]
[1739638439833,0.002,97539.0,97538.0,0.1538915]
[1739638441049,0.0102831,97539.0,97538.0,0.1538915]
[1739638444576,0.002,97539.0,97538.0,0.1538915]
[1739638445592,0.002,97539.0,97538.0,0.3492915]
[1739638446317,0.001,97539.0,97538.0,0.3492915]
[1739638446556,6.6e-07,97541.0,97540.0,0.303783]
[1739638448320,6.6e-07,97541.0,97540.0,0.305783]
[1739638448535,6.6e-07,97541.0,97540.0,0.308783]
[1739638451566,0.00016831,97544.0,97541.0,0.15]
[1739638451802,0.00016831,97544.0,97543.0,0.153778]
[1739638454110,0.00016831,97544.0,97543.0,0.154778]
[1739638454729,0.00016831,97544.0,97543.0,0.155778]
[1739638456072,0.00016831,97544.0,97543.0,0.002]
[1739638456322,0.00016831,97544.0,97543.0,0.155778]
[1739638459037,0.00016831,97544.0,97543.0,0.15564788]
[1739638462564,0.00016831,97544.0,97543.0,0.00186988]
[1739638467446,0.00016831,97544.0,97543.0,0.00197638]
[1739638467648,0.07796831,97544.0,97543.0,0.00197638]
[1739638468302,0.34381253,97544.0,97543.0,0.00197638]
[1739638468505,0.34253106,97544.0,97543.0,0.00197638]
[1739638468834,0.38803106,97544.0,97543.0,0.00197638]
[1739638469034,0.41103106,97544.0,97543.0,0.00197638]
[1739638469390,0.41103106,97544.0,97543.0,0.0011065]
[1739638469615,0.44497856,97544.0,97543.0,0.0011065]
[1739638469733,0.44497856,97544.0,97543.0,0.0001065]
[1739638469940,0.44497856,97544.0,97543.0,0.0011065]
[1739638470138,0.41503106,97544.0,97543.0,0.0011065]
[1739638470371,0.41303106,97544.0,97543.0,0.0011065]
[1739638470577,0.41303106,97544.0,97543.0,0.0001065]
[1739638470782,0.42203106,97544.0,97543.0,0.0001065]
[1739638471373,0.41703106,97544.0,97543.0,0.0001065]
[1739638471797,0.42303106,97544.0,97543.0,0.0001065]
[1739638472005,0.41703106,97544.0,97543.0,0.0001065]
[1739638472391,0.42103106,97544.0,97543.0,0.0001065]
[1739638473322,0.44149549,97544.0,97543.0,0.0001065]
[1739638482110,0.37299549,97544.0,97543.0,0.0001065]
[1739638482318,0.36699549,97544.0,97543.0,0.0001065]
[1739638482527,0.36299549,97544.0,97543.0,0.0001065]
[1739638482966,0.36599549,97544.0,97543.0,0.0001065]
[1739638483167,0.37099549,97544.0,97543.0,0.0001065]
[1739638483490,0.37299549,97544.0,97543.0,0.0001065]
[1739638483821,0.36799549,97544.0,97543.0,0.0001065]
[1739638484028,0.36999549,97544.0,97543.0,0.0001065]
[1739638500083,0.43989549,97544.0,97543.0,0.0001065]
[1739638500328,0.47183229,97544.0,97543.0,0.0001065]
[1739638501595,0.46683229,97544.0,97543.0,0.0001065]
[1739638501808,0.46483229,97544.0,97543.0,0.0001065]
[1739638502013,0.47083229,97544.0,97543.0,0.0011065]
[1739638502140,0.47683229,97544.0,97543.0,0.0021065]
[1739638502750,0.47083229,97544.0,97543.0,0.0011065]
[1739638502951,0.79843229,97544.0,97543.0,0.0021065]
[1739638503184,0.79943229,97544.0,97543.0,0.0011065]
[1739638503827,0.79243229,97544.0,97543.0,0.0001065]
[1739638504185,0.79206105,97544.0,97543.0,0.0001065]
[1739638505252,0.79906105,97544.0,97543.0,0.0011065]
[1739638505601,0.78606105,97544.0,97543.0,0.0001065]
[1739638505807,0.79328471,97544.0,97543.0,0.0011065]
[1739638506048,0.79328471,97544.0,97543.0,0.0021065]
[1739638506249,0.79928471,97544.0,97543.0,0.0011065]
[1739638506456,0.79228471,97544.0,97543.0,0.0001065]
[1739638506655,0.79932852,97544.0,97543.0,0.0021065]
[1739638506852,0.80532852,97544.0,97543.0,0.0021065]
[1739638507186,0.79932852,97544.0,97543.0,0.0011065]
[1739638508160,0.79232852,97544.0,97543.0,0.0001065]
[1739638508367,0.79832852,97544.0,97543.0,0.0011065]
[1739638508566,0.79932852,97544.0,97543.0,0.0011065]
[1739638508969,0.79832852,97544.0,97543.0,0.0011065]
[1739638509175,0.79232852,97544.0,97543.0,0.0001065]
[1739638509449,0.80532852,97544.0,97543.0,0.0021065]
[1739638509874,0.79232852,97544.0,97543.0,0.0001065]
[1739638510087,0.80532852,97544.0,97543.0,0.0021065]
[1739638511328,0.78632852,97544.0,97543.0,0.0001065]
[1739638511741,0.75242852,97544.0,97543.0,0.0021065]
[1739638512356,0.74542852,97544.0,97543.0,0.0011065]
[1739638512570,0.73942852,97544.0,97543.0,0.0001065]
[1739638512778,0.74542852,97544.0,97543.0,0.0011065]
[1739638513444,0.75042852,97544.0,97543.0,0.0011065]
[1739638521792,0.71849172,97544.0,97543.0,0.0011065]
[1739638522372,0.75041879,97544.0,97543.0,0.0011065]
[1739638522573,0.64982172,97544.0,97543.0,0.0011065]
[1739638522771,0.64153862,97544.0,97543.0,0.0011065]
[1739638522977,0.64982172,97544.0,97543.0,0.0011065]
[1739638523363,0.74177089,97544.0,97543.0,0.0011065]
[1739638524306,0.70984382,97544.0,97543.0,0.0011065]
[1739638525531,0.70156072,97544.0,97543.0,0.0011065]
[1739638526190,0.46411865,97544.0,97543.0,0.0011065]
[1739638526393,0.59743022,97544.0,97543.0,0.0011065]
[1739638526621,0.58914712,97544.0,97543.0,0.0011065]
[1739638526831,0.27583022,97544.0,97543.0,0.0011065]
[1739638528997,0.26754712,97544.0,97543.0,0.0011065]
[1739638529223,0.27583022,97544.0,97543.0,0.0011065]
[1739638535240,0.12205422,97544.0,97543.0,0.0011065]
[1739638535441,0.01955057,97544.0,97543.0,0.0011065]
[1739638535647,0.01955057,97544.0,97543.0,0.1548845]
[1739638536227,0.01126747,97544.0,97543.0,0.1548845]
[1739638536665,0.00526747,97544.0,97543.0,0.1538845]
[1739638536866,0.01355057,97544.0,97543.0,0.1538845]
[1739638537069,0.00526747,97544.0,97543.0,0.1538845]
[1739638537842,0.00855057,97544.0,97543.0,0.1538845]
[1739638538117,0.00955057,97544.0,97543.0,0.1538845]
[1739638538334,0.00855057,97544.0,97543.0,0.1538845]
[1739638538761,0.00855057,97544.0,97543.0,0.1548845]
[1739638538987,0.00855057,97544.0,97543.0,0.1558845]
[1739638539436,0.00855057,97544.0,97543.0,0.1538845]
[1739638539630,0.00855057,97544.0,97543.0,0.1558845]
[1739638540148,0.00855057,97544.0,97543.0,0.1548845]
[1739638540576,0.00855057,97544.0,97543.0,0.1568845]
[1739638541419,0.00855057,97544.0,97543.0,0.1558845]
[1739638541842,0.00855057,97544.0,97543.0,0.1548845]
[1739638542072,0.00855057,97544.0,97543.0,0.1568845]
[1739638542443,0.00855057,97544.0,97543.0,0.1548845]
[1739638543075,0.00855057,97544.0,97543.0,0.1568845]
[1739638543959,0.00026747,97544.0,97543.0,0.1568845]
[1739638544170,0.00855057,97544.0,97543.0,0.1568845]
[1739638545480,0.00026747,97544.0,97543.0,0.1568845]
[1739638545686,0.00855057,97544.0,97543.0,0.1568845]
[1739638554560,0.00026747,97544.0,97543.0,0.1568845]
[1739638556797,0.00855057,97544.0,97543.0,0.1568845]
[1739638563310,0.00026747,97544.0,97543.0,0.1568845]
[1739638567055,0.00855057,97544.0,97543.0,0.1568845]
[1739638569036,0.00026747,97544.0,97543.0,0.1568845]
[1739638569243,0.00855057,97544.0,97543.0,0.1568845]
[1739638569869,0.00026747,97544.0,97543.0,0.1568845]
[1739638570072,0.00855057,97544.0,97543.0,0.1568845]
[1739638571768,0.08965057,97544.0,97543.0,0.0031065]
[1739638572830,0.19215422,97544.0,97543.0,0.0031065]
[1739638573498,0.34593022,97544.0,97543.0,0.0031065]
[1739638573926,0.34593022,97544.0,97543.0,0.0001065]
[1739638574176,0.34593022,97544.0,97543.0,0.0021065]
[1739638574817,0.34593022,97544.0,97543.0,0.0031065]
[1739638575038,0.34593022,97544.0,97543.0,0.0021065]
[1739638575466,0.34693022,97544.0,97543.0,0.0021065]
[1739638575679,0.34693022,97544.0,97543.0,0.0001065]
[1739638590449,0.39453022,97544.0,97543.0,0.0001065]
[1739638590767,0.4494876,97544.0,97543.0,0.0001065]
[1739638591674,0.4484876,97544.0,97543.0,0.0001065]
[1739638591873,0.4514876,97544.0,97543.0,0.0001065]
[1739638592079,0.4554876,97544.0,97543.0,0.0001065]
[1739638592293,0.4524876,97544.0,97543.0,0.0001065]
[1739638592478,0.4584876,97544.0,97543.0,0.0001065]
[1739638592632,0.4644876,97544.0,97543.0,0.0011065]
[1739638594359,0.43253022,97544.0,97543.0,0.0011065]
[1739638603081,0.46444796,97544.0,97543.0,0.0011065]
[1739638604642,0.46444717,97544.0,97543.0,0.0011065]
[1739638607119,0.78604717,97544.0,97543.0,0.0011065]
[1739638615824,0.75413022,97544.0,97543.0,0.0011065]
[1739638616092,0.7860376,97544.0,97543.0,0.0011065]
[1739638616276,0.75413022,97544.0,97543.0,0.0011065]
[1739638621198,0.78606239,97544.0,97543.0,0.0011065]
[1739638621741,0.75413022,97544.0,97543.0,0.0011065]
[1739638621943,0.78606407,97544.0,97543.0,0.0011065]
[1739638626727,0.73846407,97544.0,97543.0,0.0011065]
[1739638635554,0.78406407,97544.0,97543.0,0.0011065]
[1739638645728,0.73846407,97544.0,97543.0,0.0011065]
[1739638661593,0.65736407,97544.0,97543.0,0.0011065]
[1739638664453,0.63436407,97544.0,97543.0,0.0011065]
[1739638666415,0.31276407,97544.0,97543.0,0.0011065]
[1739638682294,0.39296407,97544.0,97543.0,0.0011065]
[1739638683336,0.31276407,97544.0,97543.0,0.0011065]
[1739638688858,0.28083022,97544.0,97543.0,0.0011065]
[1739638691744,0.12705422,97544.0,97543.0,0.0011065]
[1739638692005,0.01626747,97544.0,97543.0,0.1548845]
[1739638692213,0.02455057,97544.0,97543.0,0.0011065]
[1739638692413,0.02455057,97544.0,97543.0,0.1548845]
[1739638692613,0.01626747,97544.0,97543.0,0.1548845]
[1739638692969,0.00626747,97544.0,97543.0,0.1548845]
[1739638693174,0.00026747,97544.0,97543.0,0.1538845]
[1739638693384,0.00626747,97544.0,97543.0,0.1538845]
[1739638693921,0.00626747,97544.0,97543.0,0.16181796]
[1739638695664,0.01455057,97544.0,97543.0,0.16181796]
[1739638696045,0.00855057,97544.0,97543.0,0.00803996]
[1739638696251,0.00026747,97544.0,97543.0,0.00803996]
[1739638696447,0.01255057,97544.0,97543.0,0.00803996]
[1739638696776,0.00426747,97544.0,97543.0,0.00803996]
[1739638697258,0.01255057,97544.0,97543.0,0.00803996]
[1739638699017,0.16632657,97544.0,97543.0,0.00803996]
[1739638699980,0.26883022,97544.0,97543.0,0.00803996]
[1739638700167,0.26883022,97544.0,97543.0,0.0001065]
[1739638700955,0.34663022,97544.0,97543.0,0.0001065]
[1739638704944,0.26883022,97544.0,97543.0,0.0001065]
[1739638715184,0.26883022,97544.0,97543.0,0.00803824]
[1739638716475,0.26883022,97544.0,97543.0,0.0001065]
[1739638719076,0.26883022,97544.0,97543.0,0.00804063]
[1739638724479,0.26883022,97544.0,97543.0,0.0001065]
[1739638727000,0.26883022,97544.0,97543.0,0.00804183]
[1739638732813,0.26883022,97544.0,97543.0,0.0001065]
[1739638737006,0.26683022,97544.0,97543.0,0.0001065]
[1739638737213,0.26583022,97544.0,97543.0,0.0001065]
[1739638737431,0.26783022,97544.0,97543.0,0.0001065]
[1739638739353,0.34583022,97544.0,97543.0,0.0001065]
[1739638767686,0.26783022,97544.0,97543.0,0.0001065]
[1739638768092,0.25954712,97544.0,97543.0,0.0001065]
[1739638768302,0.26783022,97544.0,97543.0,0.0001065]
[1739638768928,0.00326747,97544.0,97543.0,0.0001065]
[1739638769891,0.15704347,97544.0,97543.0,0.0001065]
[1739638770327,0.15604347,97544.0,97543.0,0.0001065]
[1739638770529,0.16432657,97544.0,97543.0,0.0001065]
[1739638771398,0.01155057,97544.0,97543.0,0.0001065]
[1739638771586,0.00955057,97544.0,97543.0,0.0011065]
[1739638771973,0.00855057,97544.0,97543.0,0.0001065]
[1739638772175,0.00855057,97544.0,97543.0,0.0011065]
[1739638772636,0.16232657,97544.0,97543.0,0.0011065]
[1739638774602,0.00026747,97544.0,97543.0,0.0011065]
[1739638776951,0.00855057,97544.0,97543.0,0.0001065]
[1739638777162,0.00026747,97544.0,97543.0,0.0011065]
[1739638777630,0.00026747,97544.0,97543.0,0.0001065]
[1739638778054,0.00026747,97544.0,97543.0,0.0011065]
[1739638778268,0.00026747,97544.0,97543.0,0.1548845]
[1739638780519,0.00026747,97544.0,97543.0,0.1628199]
[1739638792875,0.00026747,97544.0,97543.0,0.1548845]
[1739638802252,0.00026747,97544.0,97543.0,0.0011065]
[1739638802468,0.15404347,97544.0,97543.0,0.0011065]
[1739638803546,0.00026747,97544.0,97543.0,0.0011065]
[1739638803765,0.00026747,97544.0,97543.0,0.1548845]
[1739638803979,0.00026747,97544.0,97543.0,0.0011065]
[1739638804191,0.00026747,97544.0,97543.0,0.1548845]
[1739638806171,0.00026747,97544.0,97543.0,0.0011065]
[1739638806321,0.00026747,97544.0,97543.0,0.1548845]
[1739638807523,0.00026747,97544.0,97543.0,0.0011065]
[1739638807732,0.24002657,97544.0,97543.0,0.0011065]
[1739638810913,0.08625057,97544.0,97543.0,0.0011065]
[1739638811896,0.08625057,97544.0,97543.0,0.00904392]
[1739638812611,0.00855057,97544.0,97543.0,0.00904392]
[1739638816862,0.16232657,97544.0,97543.0,0.00904392]
[1739638819156,0.23802657,97544.0,97543.0,0.00904392]
[1739638819793,0.23802657,97544.0,97543.0,0.0011065]
[1739638820005,0.38903022,97544.0,97543.0,0.0011065]
[1739638821873,0.38903022,97544.0,97543.0,0.0001065]
[1739638822276,0.38903022,97544.0,97543.0,0.0011065]
[1739638822485,0.40980602,97544.0,97543.0,0.0011065]
[1739638822638,0.41180602,97544.0,97543.0,0.0001065]
[1739638823051,0.41380602,97544.0,97543.0,0.0001065]
[1739638825393,0.75840602,97544.0,97543.0,0.0001065]
[1739638826211,0.73540602,97544.0,97543.0,0.0001065]
[1739638826557,0.73140602,97544.0,97543.0,0.0001065]
[1739638826764,0.73140602,97544.0,97543.0,0.0011065]
[1739638826765,0.73840602,97544.0,97543.0,0.0011065]
[1739638826975,0.74440602,97544.0,97543.0,0.0021065]
[1739638827394,0.73840602,97544.0,97543.0,0.0011065]
[1739638827808,0.74440602,97544.0,97543.0,0.0021065]
[1739638827960,0.73740602,97544.0,97543.0,0.0011065]
[1739638828166,0.74340602,97544.0,97543.0,0.0021065]
[1739638835582,0.69490602,97544.0,97543.0,0.0021065]
[1739638837879,0.68662292,97544.0,97543.0,0.0021065]
[1739638838100,0.66584712,97544.0,97543.0,0.0021065]
[1739638838313,0.67413022,97544.0,97543.0,0.0021065]
[1739638844995,0.66213022,97544.0,97543.0,0.0001065]
[1739638845227,0.66813022,97544.0,97543.0,0.0011065]
[1739638846657,0.67413022,97544.0,97543.0,0.0021065]
[1739638850256,0.67413022,97544.0,97543.0,0.0021065]
[1739638850995,0.77796026,97544.0,97543.0,0.0021065]
[1739638851659,0.78840956,97544.0,97543.0,0.0021065]
[1739638852300,0.93840956,97544.0,97543.0,0.0021065]
[1739638852925,0.92640956,97544.0,97543.0,0.0001065]
[1739638853133,0.93340956,97544.0,97543.0,0.0001065]
[1739638853322,0.94040956,97544.0,97543.0,0.0001065]
[1739638859583,0.94036956,97544.0,97543.0,0.0001065]
[1739638875050,0.92992026,97544.0,97543.0,0.0001065]
[1739638877470,0.94028964,97544.0,97543.0,0.0001065]
[1739638884446,0.94028964,97544.0,97543.0,5e-07]
[1739638888725,0.92992026,97544.0,97543.0,5e-07]
[1739638897507,0.92292026,97544.0,97543.0,5e-07]
[1739638898236,0.1850891,97525.0,97524.0,0.09185912]
[1739638898444,0.40232279,97525.0,97524.0,0.09185912]
[1739638898583,0.40232279,97525.0,97524.0,0.08195252]
[1739638898984,0.40232279,97525.0,97515.0,0.0098855]
[1739638898985,0.0082831,97516.0,97515.0,0.0098855]
[1739638899185,0.28888871,97516.0,97515.0,0.0098855]
[1739638899389,0.1621081,97513.0,97510.0,0.0001065]
[1739638899586,0.26589371,97513.0,97510.0,0.0001065]
[1739638899793,0.11078675,97513.0,97510.0,0.0001065]
[1739638900107,0.1621111,97511.0,97510.0,0.0001065]
[1739638900288,0.26461475,97511.0,97510.0,0.0001065]
[1739638900546,0.26465853,97511.0,97510.0,0.0001065]
[1739638901348,0.26665853,97511.0,97510.0,0.0001065]
[1739638902714,0.28963356,97511.0,97510.0,0.0001065]
[1739638902959,0.10654743,97511.0,97510.0,0.0001065]
[1739638903231,0.00404378,97511.0,97510.0,0.0474065]
[1739638903461,0.00204378,97511.0,97510.0,0.1260065]
[1739638903701,0.00932688,97511.0,97510.0,0.1260065]
[1739638904190,0.00104378,97511.0,97510.0,0.1260065]
[1739638904435,4.378e-05,97511.0,97510.0,0.1260065]
[1739638905831,0.00832688,97511.0,97510.0,0.1260065]
[1739638911183,4.378e-05,97511.0,97510.0,0.1260065]
[1739638913908,4.378e-05,97511.0,97510.0,0.2798365]
[1739638915923,4.378e-05,97511.0,97510.0,0.28777579]
[1739638919493,0.00801922,97518.0,97517.0,0.153819]
[1739638919737,0.00801922,97518.0,97517.0,0.15395012]
[1739638919943,0.3216,97521.0,97520.0,0.153814]
[1739638920362,0.32961922,97521.0,97520.0,0.153814]
[1739638920823,0.3216,97521.0,97520.0,0.153814]
[1739638921038,0.3216,97521.0,97520.0,0.16175329]
[1739638921433,0.32961922,97521.0,97520.0,0.16175329]
[1739638921869,0.33061922,97521.0,97520.0,0.16175329]
[1739638922085,0.00901922,97521.0,97520.0,0.16175329]
[1739638922921,0.01001922,97521.0,97520.0,0.16175329]
[1739638923597,0.002,97521.0,97520.0,0.16175329]
[1739638923806,0.01001922,97521.0,97520.0,0.16175329]